bitfinex-derivatives/quotes_SOLF0:USTF0_20241208
["timestamp","ask_amount","ask_price","bid_price","bid_amount"]
[1733684579709,10.38317781,235.67,235.57,2.41270823]
[1733684579904,194.0,235.95,235.58,1.35137251]
[1733684580111,10.38317781,235.72,235.62,2.1208]
[1733684580305,1.94,235.71,235.62,2.1208]
[1733684580614,2.1204,235.67,235.6,2.1209]
[1733684580808,10.38317781,235.69,235.6,2.1209]
[1733684581003,2.1208,235.63,235.57,2.1212]
[1733684581208,2.1208,235.63,235.58,2.41255072]
[1733684581411,2.1208,235.63,235.59,1.35129471]
[1733684581710,2.1208,235.63,235.55,10.38317781]
[1733684581912,2.1208,235.63,235.56,1.35170238]
[1733684582103,2.1208,235.63,235.55,10.38317781]
[1733684582104,2.1208,235.63,235.57,2.1213]
[1733684582309,12.32317781,235.66,235.55,10.38317781]
[1733684582611,2.1209,235.62,235.56,1.35165363]
[1733684582808,2.1209,235.62,235.57,1.0614317]
[1733684583112,10.38317781,235.63,235.51,1.94]
[1733684583315,10.38317781,235.63,235.53,2.1216]
[1733684583612,2.121,235.6,235.54,9.56018329]
[1733684583813,2.121,235.6,235.55,5.37535432]
[1733684584008,2.121,235.6,235.56,5.02856882]
[1733684584215,2.121,235.6,235.57,2.41305072]
[1733684584411,2.121,235.6,235.51,1.94]
[1733684584615,2.121,235.6,235.54,2.1216]
[1733684584812,1.94,235.61,235.55,5.02771904]
[1733684585013,2.1213,235.57,235.51,1.94]
[1733684585206,2.1213,235.57,235.52,6.72686372]
[1733684585411,2.1213,235.57,235.53,5.02832428]
[1733684585611,1.94,235.61,235.54,2.41290989]
[1733684585810,1.94,235.61,235.55,1.35132274]
[1733684585811,2.1214,235.56,235.55,1.35132274]
[1733684586408,2.1214,235.56,235.5,2.1219]
[1733684586614,2.1214,235.56,235.55,1.35074248]
[1733684587210,1.94,235.56,235.46,11.77597781]
[1733684587413,1.94,235.56,235.47,6.72468917]
[1733684587621,1.94,235.56,235.48,5.02593336]
[1733684587917,1.94,235.56,235.49,2.41223825]
[1733684587918,2.1218,235.52,235.49,2.41223825]
[1733684588115,2.1218,235.52,235.45,1.3683]
[1733684588313,2.1218,235.52,235.46,5.02664451]
[1733684588507,2.1218,235.52,235.47,2.41258097]
[1733684588708,2.1218,235.52,235.45,1.3683]
[1733684588709,2.1218,235.52,235.48,1.35069403]
[1733684588913,2.1218,235.52,235.46,2.1223]
[1733684589109,2.1218,235.52,235.47,2.41181308]
[1733684589315,2.1218,235.52,235.46,2.1223]
[1733684589616,2.1218,235.52,235.47,1.34927057]
[1733684589818,2.1218,235.52,235.46,2.1223]
[1733684590013,2.1218,235.52,235.47,1.34919434]
[1733684590219,2.1218,235.52,235.48,1.34919434]
[1733684590410,2.1218,235.52,235.46,2.1223]
[1733684590614,2.1218,235.52,235.47,1.34861183]
[1733684590811,2.1218,235.52,235.48,1.34861183]
[1733684591011,2.1218,235.52,235.46,2.1223]
[1733684591318,2.1218,235.52,235.47,2.4103495]
[1733684591518,2.1218,235.52,235.48,1.34848497]
[1733684591724,2.1218,235.52,235.46,2.1223]
[1733684592015,2.1218,235.52,235.47,1.34794283]
[1733684592214,2.1218,235.52,235.46,2.1223]
[1733684592420,10.38317781,235.54,235.47,1.34758986]
[1733684592617,1.94,235.53,235.4,11.70277781]
[1733684592813,1.94,235.53,235.41,6.71681844]
[1733684593017,1.94,235.53,235.42,5.01763991]
[1733684593213,1.94,235.53,235.43,1.34759692]
[1733684593420,2.1222,235.48,235.4,10.38317781]
[1733684593622,1.94,235.48,235.41,1.34687379]
[1733684593918,1.94,235.48,235.4,10.38317781]
[1733684594113,2.1223,235.47,235.4,10.38317781]
[1733684599118,2.1223,235.47,235.43,6.65208696]
[1733684599720,2.1223,235.46,235.43,6.65208696]
[1733684600815,2.1223,235.46,235.41,6.65208696]
[1733684602325,1.94,235.48,235.45,6.65208696]
[1733684602524,6.65208696,235.54,235.47,6.65208696]
[1733684602828,1.94,235.51,235.47,6.65208696]
[1733684603921,6.65208696,235.54,235.47,6.65208696]
[1733684604116,2.1217,235.52,235.47,6.65208696]
[1733684604322,6.65208696,235.51,235.45,6.65208696]
[1733684605318,8.77418696,235.49,235.36,1.3522]
[1733684605522,6.65208696,235.47,235.41,6.65208696]
[1733684605728,6.65208696,235.49,235.41,6.65208696]
[1733684606522,6.65208696,235.49,235.43,6.65208696]
[1733684606725,6.65208696,235.51,235.45,6.65208696]
[1733684607732,8.77398696,235.51,235.45,6.65208696]
[1733684608029,6.65208696,235.49,235.43,6.65208696]
[1733684609031,6.65208696,235.47,235.38,1.94]
[1733684609330,6.65208696,235.47,235.4,10.59675345]
[1733684609533,8.77438696,235.47,235.41,2.40576778]
[1733684609733,8.77438696,235.47,235.42,1.34376134]
[1733684610030,8.77438696,235.47,235.4,6.65208696]
[1733684610224,8.77438696,235.47,235.41,2.40588116]
[1733684610427,8.77438696,235.47,235.42,1.34387014]
[1733684610631,8.77438696,235.47,235.4,6.65208696]
[1733684610927,2.1219,235.51,235.42,6.65208696]
[1733684611131,1.94,235.51,235.44,6.65208696]
[1733684612627,6.65208696,235.56,235.53,2.1217]
[1733684612830,1.3064,235.64,235.36,1.3522]
[1733684612831,1.94,235.57,235.44,1.3214]
[1733684613027,6.65208696,235.52,235.45,13.02467117]
[1733684613234,6.65208696,235.48,235.41,6.65208696]
[1733684613435,6.65208696,235.48,235.42,1.34405938]
[1733684613733,4.0262,235.64,235.45,6.65208696]
[1733684613928,6.65208696,235.54,235.47,6.65208696]
[1733684614125,1.94,235.54,235.47,6.65208696]
[1733684614328,1.94,235.54,235.52,2.1217]
[1733684615637,1.94,235.54,235.51,2.1218]
[1733684616134,1.94,235.54,235.47,2.1221]
[1733684616135,2.1217,235.53,235.47,2.1221]
[1733684616331,6.65208696,235.52,235.44,6.65208696]
[1733684616540,6.65208696,235.52,235.45,2.40618486]
[1733684616739,6.65208696,235.52,235.46,1.344357]
[1733684616935,6.65208696,235.53,235.47,1.3446038]
[1733684617136,1.94,235.54,235.43,10.38903692]
[1733684617330,1.94,235.54,235.44,6.70828696]
[1733684617533,2.1218,235.52,235.46,2.1222]
[1733684617838,10.38903692,235.51,235.39,3.3187]
[1733684618030,10.38903692,235.51,235.4,5.01051689]
[1733684618232,10.38903692,235.51,235.41,2.40711798]
[1733684618437,10.38903692,235.51,235.42,1.3450542]
[1733684618639,10.38903692,235.51,235.41,2.1227]
[1733684618640,2.1222,235.47,235.41,2.1227]
[1733684618842,2.1222,235.47,235.42,1.34548552]
[1733684619031,2.1222,235.47,235.41,2.1227]
[1733684619235,2.1222,235.47,235.42,1.34547854]
[1733684619544,2.1222,235.47,235.41,2.1227]
[1733684623839,2.1222,235.47,235.39,1.3787]
[1733684624140,4.0621,235.49,235.43,2.1225]
[1733684624345,1.94,235.53,235.43,10.38903692]
[1733684624542,2.1219,235.51,235.45,2.1223]
[1733684624738,1.94,235.53,235.43,12.32903692]
[1733684625139,2.1218,235.52,235.46,2.1222]
[1733684625342,1.94,235.53,235.46,2.1222]
[1733684626645,2.1218,235.51,235.46,2.1222]
[1733684627440,2.1218,235.51,235.43,12.32903692]
[1733684627441,4.0215,235.55,235.47,1.35077042]
[1733684627642,10.38903692,235.57,235.48,4.53478062]
[1733684627946,1.94,235.58,235.49,5.02665365]
[1733684628145,2.1216,235.54,235.5,3.67591233]
[1733684628348,2.1216,235.54,235.46,10.38903692]
[1733684628648,2.1216,235.54,235.47,10.91032455]
[1733684628851,2.1216,235.54,235.48,6.72665874]
[1733684629143,10.38903692,235.55,235.49,5.02778198]
[1733684629349,10.38903692,235.55,235.5,1.35119288]
[1733684629550,10.38903692,235.55,235.45,1.2956]
[1733684629750,2.1219,235.51,235.46,4.11272435]
[1733684629951,2.1219,235.51,235.47,3.05080512]
[1733684630151,2.1219,235.51,235.45,3.418]
[1733684630152,2.1219,235.51,235.48,5.02983055]
[1733684630348,2.1219,235.51,235.49,2.41365359]
[1733684630548,2.1219,235.51,235.5,1.35173436]
[1733684631350,2.1219,235.51,235.5,2.41365551]
[1733684632055,2.1219,235.51,235.5,1.35173436]
[1733684632653,10.38903692,235.52,235.42,1.94]
[1733684632845,10.38903692,235.52,235.43,10.92240504]
[1733684633051,10.38903692,235.52,235.44,4.11415361]
[1733684633252,10.38903692,235.52,235.45,6.73268194]
[1733684633455,10.38903692,235.52,235.46,5.03353208]
[1733684633655,10.38903692,235.52,235.47,1.35303509]
[1733684633855,10.38903692,235.52,235.42,2.1226]
[1733684634060,10.38903692,235.52,235.43,10.92381857]
[1733684634261,10.38903692,235.52,235.44,6.7334507]
[1733684634452,10.38903692,235.52,235.45,5.03411477]
[1733684634658,2.1223,235.47,235.46,2.41513485]
[1733684635658,2.1223,235.47,235.46,1.06208495]
[1733684635859,2.1223,235.47,235.42,2.1226]
[1733684636052,2.1223,235.47,235.43,2.41526434]
[1733684636253,2.1223,235.47,235.44,2.41526434]
[1733684636458,2.1223,235.47,235.42,2.1226]
[1733684636660,2.1223,235.47,235.43,3.68144325]
[1733684636962,2.1223,235.47,235.44,2.41535345]
[1733684637162,2.1223,235.47,235.42,2.1226]
[1733684637163,2.1223,235.47,235.42,8.77435343]
[1733684637364,2.1223,235.47,235.43,5.03489885]
[1733684637564,2.1223,235.47,235.44,2.41545091]
[1733684637767,2.1223,235.47,235.42,8.77435343]
[1733684637959,2.1223,235.47,235.43,7.15740394]
[1733684638267,2.1223,235.47,235.44,2.415456]
[1733684638462,2.1221,235.49,235.45,1.35335873]
[1733684638757,2.1221,235.49,235.44,6.65175343]
[1733684638758,1.94,235.53,235.46,8.00522844]
[1733684638959,1.94,235.53,235.47,2.41547424]
[1733684639161,1.94,235.53,235.48,1.35347501]
[1733684639458,1.94,235.53,235.46,6.65175343]
[1733684639662,2.1219,235.51,235.48,2.1221]
[1733684640261,2.1219,235.51,235.49,1.35314149]
[1733684640466,8.77365343,235.5,235.49,1.35314149]
[1733684640859,8.77365343,235.5,235.45,2.1224]
[1733684641066,8.77365343,235.5,235.46,1.35328833]
[1733684641267,2.1219,235.5,235.45,2.1224]
[1733684641464,2.1219,235.5,235.46,8.00512329]
[1733684641666,2.1219,235.5,235.47,2.41530756]
[1733684641862,2.1219,235.5,235.46,8.77405343]
[1733684642066,2.1219,235.5,235.47,2.41522317]
[1733684642267,2.1219,235.5,235.46,8.77405343]
[1733684642468,2.1219,235.5,235.48,1.35337018]
[1733684642763,6.65175343,235.52,235.49,1.35337545]
[1733684642964,6.65175343,235.52,235.44,10.71415343]
[1733684643268,2.1221,235.49,235.45,8.85684685]
[1733684643467,2.1221,235.49,235.46,5.0352255]
[1733684643764,6.65175343,235.5,235.47,2.41551751]
[1733684643963,2.1221,235.48,235.44,6.65175343]
[1733684644165,2.1221,235.48,235.45,6.73475599]
[1733684644365,2.1221,235.48,235.46,5.03554202]
[1733684644565,2.1221,235.48,235.47,2.4156272]
[1733684645660,2.122,235.49,235.47,2.41585899]
[1733684645861,6.65175343,235.52,235.47,1.35384929]
[1733684646062,6.65175343,235.52,235.48,1.35384929]
[1733684646273,2.1219,235.5,235.46,2.1223]
[1733684646566,2.1219,235.5,235.47,5.03658005]
[1733684646763,2.1219,235.5,235.48,2.41597032]
[1733684646972,2.1219,235.5,235.46,2.1223]
[1733684647270,2.1219,235.5,235.47,5.03669399]
[1733684647464,2.1219,235.5,235.48,2.4159849]
[1733684647661,2.1219,235.5,235.49,1.35398049]
[1733684648765,6.65175343,235.5,235.44,8.77415343]
[1733684648967,2.1221,235.49,235.45,6.73621626]
[1733684649167,2.1221,235.49,235.46,3.68293474]
[1733684649472,2.1221,235.49,235.47,2.41607939]
[1733684649668,2.1221,235.49,235.48,1.35407585]
[1733684650870,2.1221,235.49,235.45,2.1224]
[1733684651074,2.1221,235.49,235.46,1.35409643]
[1733684651266,2.1221,235.49,235.45,2.1224]
[1733684651468,2.1221,235.49,235.46,1.35413312]
[1733684651775,2.1221,235.49,235.47,1.35415573]
[1733684652075,2.1221,235.49,235.46,2.1223]
[1733684652266,2.1221,235.49,235.47,1.35409277]
[1733684652471,2.1217,235.53,235.49,2.122]
[1733684652666,2.1217,235.53,235.48,6.65175343]
[1733684652868,8.59175343,235.55,235.5,6.65175343]
[1733684653174,1.94,235.55,235.5,6.65175343]
[1733684653372,1.94,235.58,235.52,6.65175343]
[1733684653673,1.94,235.59,235.52,6.65175343]
[1733684653873,8.59175343,235.59,235.52,6.65175343]
[1733684654078,3.9207,235.7,235.54,6.65175343]
[1733684654276,3.9207,235.7,235.48,1.94]
[1733684654277,6.65175343,235.64,235.58,6.65175343]
[1733684654482,8.59175343,235.64,235.58,6.65175343]
[1733684654877,2.1208,235.63,235.59,2.1211]
[1733684655069,6.65175343,235.66,235.6,6.65175343]
[1733684655377,8.59175343,235.68,235.6,6.65175343]
[1733684655876,1.94,235.68,235.6,6.65175343]
[1733684656066,1.94,235.68,235.62,6.65175343]
[1733684656469,1.94,235.68,235.64,2.1206]
[1733684656673,6.65175343,235.69,235.62,6.65175343]
[1733684657090,6.65175343,235.72,235.67,2.1204]
[1733684657372,6.65175343,235.72,235.64,6.65175343]
[1733684657577,6.65175343,235.7,235.65,1.34977769]
[1733684657774,6.65175343,235.7,235.65,2.1205]
[1733684658775,6.65175343,235.66,235.63,2.1207]
[1733684658980,6.65175343,235.66,235.58,6.65175343]
[1733684659180,12.3205951,235.67,235.59,5.01833809]
[1733684659483,12.3205951,235.67,235.6,1.34826575]
[1733684659681,12.3205951,235.67,235.58,1.94]
[1733684659982,12.3205951,235.67,235.56,1.94]
[1733684660173,12.3205951,235.67,235.57,2.40890977]
[1733684660379,12.3205951,235.67,235.56,1.94]
[1733684660579,2.121,235.61,235.57,1.34710573]
[1733684660780,2.121,235.61,235.54,2.1215]
[1733684660974,2.121,235.61,235.53,1.94]
[1733684661179,2.121,235.61,235.54,1.34729163]
[1733684661381,2.121,235.61,235.53,1.94]
[1733684661382,2.121,235.61,235.55,1.34729163]
[1733684661580,2.121,235.61,235.53,1.94]
[1733684661880,2.121,235.61,235.52,1.94]
[1733684662076,2.121,235.6,235.54,1.34685979]
[1733684662277,2.121,235.6,235.53,2.1216]
[1733684662477,2.121,235.6,235.52,1.94]
[1733684662673,2.121,235.6,235.53,1.3467604]
[1733684662881,2.121,235.6,235.52,1.94]
[1733684663076,1.94,235.61,235.53,1.34673942]
[1733684663276,1.94,235.61,235.52,1.94]
[1733684663472,1.94,235.61,235.53,1.34662931]
[1733684663677,1.94,235.61,235.52,12.3205951]
[1733684663872,1.94,235.61,235.53,1.34660323]
[1733684664077,1.94,235.61,235.52,12.3205951]
[1733684664278,1.94,235.61,235.53,1.34650402]
[1733684664583,1.94,235.61,235.56,2.1214]
[1733684665180,1.94,235.61,235.55,2.1215]
[1733684665577,2.1211,235.59,235.49,14.4808951]
[1733684665782,1.94,235.61,235.52,2.1217]
[1733684665977,10.3805951,235.6,235.49,4.1003]
[1733684666174,10.3805951,235.6,235.5,1.34646964]
[1733684666483,10.3805951,235.6,235.49,4.1003]
[1733684666877,2.1215,235.56,235.5,2.1219]
[1733684667179,4.0615,235.56,235.5,2.1219]
[1733684667481,4.0615,235.56,235.46,10.3805951]
[1733684667482,2.1215,235.55,235.46,10.3805951]
[1733684667785,1.94,235.56,235.48,2.122]
[1733684668282,2.1216,235.54,235.48,2.122]
[1733684668478,2.1216,235.54,235.49,2.122]
[1733684669482,2.1217,235.53,235.47,2.1221]
[1733684669682,1.94,235.56,235.47,2.1221]
[1733684669977,1.94,235.56,235.42,1.94]
[1733684670284,5.8585,235.56,235.43,1.347087]
[1733684670480,5.8585,235.56,235.41,10.3805951]
[1733684670685,5.8585,235.56,235.42,1.34723083]
[1733684670888,5.8585,235.56,235.41,10.3805951]
[1733684671080,5.8585,235.56,235.42,1.34726307]
[1733684671383,2.1219,235.5,235.44,2.1224]
[1733684671585,1.94,235.5,235.44,2.1224]
[1733684671786,2.1221,235.48,235.39,1.94]
[1733684672089,2.1221,235.48,235.4,2.40935342]
[1733684672285,2.1222,235.47,235.41,2.1227]
[1733684672586,2.1222,235.47,235.38,10.3805951]
[1733684672886,2.1221,235.49,235.43,2.1225]
[1733684673086,1.94,235.5,235.41,10.3805951]
[1733684673282,1.94,235.5,235.42,2.40933884]
[1733684673489,1.94,235.5,235.43,2.40933884]
[1733684673789,3.9185,235.56,235.44,12.78990654]
[1733684673790,1.94,235.51,235.44,12.78990654]
[1733684673984,1.94,235.52,235.45,2.40927767]
[1733684674186,1.94,235.52,235.44,10.3805951]
[1733684674187,1.94,235.54,235.49,2.1219]
[1733684674581,1.94,235.54,235.44,10.3805951]
[1733684674788,1.94,235.54,235.5,2.1219]
[1733684678090,4.0616,235.54,235.49,2.122]
[1733684678687,1.94,235.54,235.49,2.122]
[1733684679393,1.94,235.54,235.44,13.0697951]
[1733684679593,1.94,235.54,235.5,2.1218]
[1733684681294,1.94,235.54,235.52,2.1217]
[1733684681599,2.5978,235.66,235.5,10.3805951]
[1733684681600,10.3805951,235.63,235.5,10.3805951]
[1733684681899,1.94,235.62,235.5,10.3805951]
[1733684682393,1.94,235.61,235.51,1.34733331]
[1733684682598,1.94,235.61,235.54,2.1216]
[1733684682799,10.3805951,235.6,235.47,10.3805951]
[1733684682991,10.3805951,235.6,235.48,5.0167364]
[1733684683191,2.1214,235.56,235.49,2.40909592]
[1733684683399,10.3805951,235.6,235.47,12.3205951]
[1733684683601,10.3805951,235.6,235.48,1.34761137]
[1733684683904,2.1213,235.57,235.47,12.3205951]
[1733684684095,1.94,235.56,235.48,1.34763657]
[1733684684298,4.0614,235.56,235.51,2.1218]
[1733684685098,1.94,235.56,235.47,1.94]
[1733684685302,1.36,235.65,235.52,10.3805951]
[1733684685592,1.36,235.65,235.53,1.06179994]
[1733684685798,4.0608,235.64,235.58,2.1212]
[1733684686194,2.1206,235.66,235.62,2.1208]
[1733684686397,4.0606,235.66,235.62,2.1208]
[1733684688403,2.1206,235.65,235.61,2.1209]
[1733684689702,2.1206,235.65,235.55,10.3805951]
[1733684689895,1.94,235.66,235.62,2.1208]
[1733684690096,4.0605,235.66,235.62,2.1208]
[1733684692697,2.1206,235.65,235.61,2.1209]
[1733684694305,4.0605,235.66,235.55,10.3805951]
[1733684695100,4.0605,235.66,235.61,2.1209]
[1733684695298,6.64285125,235.65,235.61,2.1209]
[1733684697106,8.76345125,235.65,235.61,2.1209]
[1733684700710,2.1207,235.64,235.61,2.1209]
[1733684701611,10.70345125,235.66,235.62,2.1208]
[1733684701819,1.94,235.66,235.6,6.64285125]
[1733684702119,8.76315125,235.68,235.62,6.64285125]
[1733684702320,6.64285125,235.68,235.62,6.64285125]
[1733684703513,2.1205,235.67,235.6,8.76385125]
[1733684703817,2.1205,235.67,235.6,6.64285125]
[1733684704519,2.1205,235.67,235.63,2.1207]
[1733684705118,6.64285125,235.64,235.6,2.121]
[1733684706623,2.1208,235.63,235.6,2.121]
[1733684706818,6.64285125,235.64,235.61,2.1209]
[1733684707218,2.1207,235.64,235.61,2.1209]
[1733684707620,2.1207,235.64,235.6,2.121]
[1733684707826,2.1206,235.65,235.6,6.64285125]
[1733684708921,2.1206,235.65,235.56,1.94]
[1733684708922,2.1206,235.65,235.62,8.76365125]
[1733684709623,2.1206,235.65,235.62,2.1208]
[1733684710319,2.1207,235.64,235.61,2.1209]
[1733684710519,2.1207,235.64,235.58,6.64285125]
[1733684712335,2.1206,235.65,235.61,2.1209]
[1733684713433,6.64285125,235.66,235.6,2.121]
[1733684713434,2.1207,235.64,235.6,2.121]
[1733684713633,8.76355125,235.64,235.6,2.121]
[1733684713837,6.64285125,235.64,235.57,6.64285125]
[1733684714034,2.1208,235.63,235.58,2.1211]
[1733684714235,6.64285125,235.64,235.56,1.94]
[1733684714437,6.64285125,235.64,235.56,6.64285125]
[1733684714831,2.121,235.61,235.57,2.1212]
[1733684715143,6.64285125,235.64,235.56,6.64285125]
[1733684716033,2.1208,235.63,235.59,2.1211]
[1733684716236,6.64285125,235.64,235.56,6.64285125]
[1733684717842,6.64285125,235.64,235.57,1.06139504]
[1733684718041,6.64285125,235.64,235.56,6.64285125]
[1733684718240,6.64285125,235.64,235.57,1.06138696]
[1733684718441,6.64285125,235.64,235.56,6.64285125]
[1733684718647,6.64285125,235.64,235.57,2.41002855]
[1733684718841,6.64285125,235.64,235.58,1.34862902]
[1733684719143,6.64285125,235.64,235.56,6.64285125]
[1733684719341,6.64285125,235.64,235.57,2.41043798]
[1733684719541,6.64285125,235.64,235.58,2.41043798]
[1733684719742,2.1208,235.63,235.59,3.4701365]
[1733684719935,2.1208,235.63,235.59,2.1211]
[1733684721244,4.0606,235.65,235.6,2.121]
[1733684721443,1.94,235.67,235.6,6.64285125]
[1733684721640,8.58285125,235.67,235.6,6.64285125]
[1733684721945,8.58285125,235.67,235.61,2.1209]
[1733684721946,2.1205,235.66,235.61,2.1209]
[1733684722140,6.64285125,235.65,235.61,2.1209]
[1733684722535,6.64285125,235.63,235.59,2.121]
[1733684722736,6.64285125,235.63,235.56,6.64285125]
[1733684722937,6.64285125,235.63,235.57,5.02361656]
[1733684723141,6.64285125,235.63,235.58,2.41133616]
[1733684723342,6.64285125,235.63,235.56,6.64285125]
[1733684723641,6.64285125,235.63,235.6,2.121]
[1733684723840,6.64285125,235.63,235.57,2.41184867]
[1733684723841,8.76365125,235.63,235.56,6.64285125]
[1733684724042,8.76365125,235.63,235.57,2.41185516]
[1733684724243,8.76365125,235.63,235.58,2.41185516]
[1733684724546,2.1207,235.64,235.59,2.41181561]
[1733684724748,2.1207,235.64,235.6,1.35043177]
[1733684724944,2.1207,235.64,235.58,6.64285125]
[1733684725144,2.1207,235.64,235.6,2.121]
[1733684725940,3.9873,235.76,235.62,6.64285125]
[1733684726140,6.64285125,235.71,235.64,6.64285125]
[1733684726341,1.94,235.7,235.64,6.64285125]
[1733684726848,4.0601,235.7,235.64,6.64285125]
[1733684727047,3.9873,235.76,235.65,1.35167198]
[1733684727245,3.9873,235.76,235.64,6.64285125]
[1733684727246,6.64285125,235.71,235.64,6.64285125]
[1733684727446,6.64285125,235.73,235.66,6.64285125]
[1733684727946,1.94,235.74,235.7,2.1201]
[1733684728646,8.58285125,235.74,235.68,6.64285125]
[1733684729750,8.58285125,235.74,235.66,6.64285125]
[1733684730252,6.64285125,235.72,235.66,6.64285125]
[1733684730450,6.64285125,235.72,235.64,6.64285125]
[1733684730651,1.94,235.74,235.64,6.64285125]
[1733684730652,6.64285125,235.7,235.64,6.64285125]
[1733684730946,6.64285125,235.68,235.62,10.63695125]
[1733684731247,6.64285125,235.68,235.67,2.41381848]
[1733684731746,6.64285125,235.68,235.67,1.35285525]
[1733684732143,2.1206,235.66,235.57,6.64285125]
[1733684732454,6.64285125,235.62,235.58,6.7317883]
[1733684732649,6.64285125,235.62,235.59,5.03371771]
[1733684732857,8.76365125,235.62,235.6,1.35333352]
[1733684733050,8.76365125,235.62,235.61,1.35333352]
[1733684733553,8.76365125,235.62,235.55,6.64285125]
[1733684733762,8.76365125,235.62,235.56,10.92371822]
[1733684733950,8.76365125,235.62,235.55,6.64285125]
[1733684733951,8.76365125,235.62,235.57,6.73262524]
[1733684734148,8.76365125,235.62,235.58,5.03442078]
[1733684734447,1.3043,235.81,235.6,6.64285125]
[1733684734448,8.76305125,235.69,235.6,6.64285125]
[1733684734653,6.64285125,235.71,235.65,6.64285125]
[1733684735156,2.12,235.72,235.63,2.1208]
[1733684735359,1.94,235.73,235.64,5.0330003]
[1733684735656,1.94,235.73,235.65,5.0330003]
[1733684735854,1.94,235.73,235.66,2.41435378]
[1733684736056,1.94,235.73,235.63,2.1208]
[1733684736246,1.94,235.73,235.64,5.03271855]
[1733684736450,1.94,235.73,235.65,5.03239665]
[1733684736655,2.1201,235.71,235.66,2.414173]
[1733684736955,2.1201,235.71,235.67,1.35309226]
[1733684737254,2.1201,235.71,235.63,2.1208]
[1733684737455,2.1201,235.71,235.64,6.72933946]
[1733684737652,2.1201,235.7,235.65,5.03162305]
[1733684737851,2.1201,235.7,235.66,2.41384364]
[1733684738047,2.1201,235.7,235.67,1.35277541]
[1733684738251,2.1201,235.7,235.63,2.1208]
[1733684738448,2.1201,235.7,235.64,6.72864865]
[1733684738659,2.1201,235.7,235.65,5.0309531]
[1733684738850,2.1201,235.7,235.66,2.4136542]
[1733684739050,1.94,235.73,235.67,1.35259448]
[1733684739253,2.1202,235.69,235.63,2.1208]
[1733684739457,2.1202,235.69,235.64,6.72806641]
[1733684739658,2.1202,235.69,235.65,2.41345857]
[1733684739859,2.1202,235.69,235.66,1.35239788]
[1733684740057,2.1202,235.69,235.63,2.1208]
[1733684740356,2.1202,235.69,235.64,2.41352841]
[1733684740561,2.1202,235.69,235.65,1.35240214]
[1733684740861,2.1202,235.69,235.63,2.1208]
[1733684741058,2.1203,235.68,235.64,2.41354386]
[1733684741359,2.1203,235.68,235.63,2.1208]
[1733684741557,2.1203,235.68,235.64,1.35237508]
[1733684741760,2.1203,235.68,235.63,2.1208]
[1733684741956,10.37387227,235.72,235.64,1.35235534]
[1733684742152,10.37387227,235.72,235.6,1.92]
[1733684742559,2.1206,235.65,235.61,3.67816263]
[1733684742759,2.1206,235.65,235.62,2.41351449]
[1733684742959,2.1206,235.65,235.6,2.121]
[1733684743262,2.1206,235.65,235.61,5.03051216]
[1733684743457,2.1206,235.65,235.62,2.41351677]
[1733684743658,2.1206,235.65,235.63,1.3523479]
[1733684743860,2.1206,235.65,235.6,2.121]
[1733684744059,1.94,235.73,235.61,4.53452369]
[1733684744260,1.94,235.73,235.62,5.03077503]
[1733684744261,10.37387227,235.72,235.62,5.03077503]
[1733684744453,10.37387227,235.72,235.63,2.41361295]
[1733684744659,2.1204,235.68,235.59,1.92]
[1733684744962,2.1204,235.68,235.6,6.72871196]
[1733684745158,2.1204,235.68,235.61,5.03084913]
[1733684745353,2.1204,235.68,235.62,5.03084913]
[1733684745560,2.1204,235.68,235.59,1.92]
[1733684745561,2.1204,235.68,235.63,2.41371672]
[1733684745764,2.1204,235.68,235.61,2.1209]
[1733684746063,2.1204,235.68,235.62,5.03079367]
[1733684746265,2.1204,235.68,235.63,2.41370437]
[1733684746560,2.1204,235.68,235.59,1.92]
[1733684746757,2.1204,235.68,235.6,10.91604665]
[1733684747063,2.1204,235.68,235.61,6.72864183]
[1733684747264,2.1204,235.68,235.62,5.03081034]
[1733684747459,2.1204,235.68,235.63,2.41368233]
[1733684747661,2.1204,235.68,235.64,1.35253765]
[1733684747961,2.1204,235.68,235.65,1.35250646]